bitfinex/quotes_BTCUSD_20240728
["timestamp","ask_amount","ask_price","bid_price","bid_amount"]
[1722143880748,0.11229156,67356.0,67353.0,0.118777]
[1722143880920,0.12640194,67356.0,67353.0,0.118777]
[1722143881086,0.01411038,67356.0,67351.0,0.23756]
[1722143881287,0.11264386,67355.0,67354.0,0.118775]
[1722143881695,0.12676001,67355.0,67354.0,0.356325]
[1722143883114,0.12676001,67355.0,67337.0,0.002]
[1722143883115,0.970161,67343.0,67342.0,0.000924]
[1722143883258,1.69973689,67343.0,67342.0,0.000924]
[1722143883462,1.72272323,67343.0,67342.0,0.000924]
[1722143883672,1.79733755,67343.0,67342.0,0.000924]
[1722143884004,1.79788726,67343.0,67342.0,0.000924]
[1722143884381,1.65723175,67343.0,67342.0,0.000924]
[1722143884829,1.06759055,67343.0,67342.0,0.001924]
[1722143885651,0.26225898,67343.0,67342.0,0.001924]
[1722143885979,0.56519345,67343.0,67342.0,0.001924]
[1722143886094,0.32760445,67343.0,67342.0,0.001924]
[1722143886608,0.56519345,67343.0,67342.0,0.001924]
[1722143886811,0.56519345,67343.0,67342.0,0.12072]
[1722143886812,0.13131045,67343.0,67342.0,0.12072]
[1722143887079,0.13131045,67343.0,67342.0,0.423913]
[1722143887080,0.01808805,67343.0,67342.0,0.423913]
[1722143887363,0.01808805,67343.0,67342.0,0.18632]
[1722143887610,0.01808805,67343.0,67342.0,0.423913]
[1722143887611,0.009,67343.0,67342.0,0.423913]
[1722143887943,0.009,67343.0,67342.0,0.661506]
[1722143888173,0.009,67343.0,67342.0,1.04935857]
[1722143888947,0.001,67343.0,67342.0,1.04835857]
[1722143889362,0.009,67343.0,67342.0,1.04835857]
[1722143889772,0.008,67343.0,67342.0,1.04835857]
[1722143889920,0.009,67343.0,67342.0,1.05635857]
[1722143890333,0.008,67343.0,67342.0,1.04835857]
[1722143891080,0.008,67343.0,67342.0,1.06135857]
[1722143891081,0.001,67343.0,67342.0,1.06135857]
[1722143891440,0.002,67343.0,67342.0,1.06335857]
[1722143894559,0.002,67343.0,67342.0,0.82576557]
[1722143894902,0.002,67343.0,67342.0,0.015924]
[1722143895028,0.358383,67343.0,67342.0,0.015924]
[1722143895243,0.24582912,67343.0,67342.0,0.015924]
[1722143895446,0.48341812,67343.0,67342.0,0.015924]
[1722143895651,0.26873512,67343.0,67342.0,0.015924]
[1722143895847,0.86270712,67343.0,67342.0,0.015924]
[1722143896771,0.62411812,67343.0,67342.0,0.002924]
[1722143896975,0.86270712,67343.0,67342.0,0.008924]
[1722143897175,0.26873512,67343.0,67342.0,0.008924]
[1722143897384,0.62511812,67343.0,67342.0,0.008924]
[1722143897683,0.86170712,67343.0,67342.0,0.006924]
[1722143898085,0.86247499,67343.0,67342.0,0.006924]
[1722143898428,0.86247499,67343.0,67342.0,0.008924]
[1722143899709,0.74577098,67343.0,67342.0,0.008924]
[1722143899763,0.86294252,67343.0,67342.0,0.008924]
[1722143899971,0.74577098,67343.0,67342.0,0.008924]
[1722143900141,0.86294205,67343.0,67342.0,0.008924]
[1722143901420,0.87652911,67343.0,67342.0,0.008924]
[1722143901625,0.57404011,67343.0,67342.0,0.008924]
[1722143902031,0.81157503,67343.0,67342.0,0.008924]
[1722143902507,0.14080303,67343.0,67342.0,0.008924]
[1722143902732,0.14073311,67343.0,67342.0,0.12772]
[1722143902939,0.14073311,67343.0,67342.0,0.602906]
[1722143903087,0.02368604,67343.0,67342.0,0.602906]
[1722143903303,0.001,67343.0,67342.0,0.602906]
[1722143905232,0.11808762,67343.0,67342.0,0.602906]
[1722143905429,0.001,67343.0,67342.0,0.602906]
[1722143905652,0.11808777,67343.0,67342.0,0.602906]
[1722143905862,0.001,67343.0,67342.0,0.602906]
[1722143906537,0.11812717,67343.0,67342.0,0.365313]
[1722143906737,0.001,67343.0,67342.0,0.365313]
[1722143907708,0.001,67343.0,67342.0,0.602906]
[1722143907709,0.11809297,67343.0,67342.0,0.602906]
[1722143908245,0.001,67343.0,67342.0,0.6119585]
[1722143914684,0.11795945,67343.0,67342.0,0.6119585]
[1722143916583,0.11795945,67343.0,67342.0,1.37780407]
[1722143916584,0.001,67343.0,67342.0,1.37780407]
[1722143916743,0.001,67343.0,67342.0,1.14021107]
[1722143918584,0.001,67343.0,67342.0,1.13864501]
[1722143922563,0.001,67343.0,67342.0,0.98838544]
[1722143925091,0.001,67343.0,67342.0,0.90868544]
[1722143940054,0.11797062,67343.0,67342.0,0.90868544]
[1722143940779,0.11650318,67343.0,67342.0,0.90868544]
[1722143941098,0.1164988,67343.0,67342.0,0.90868544]
[1722143942090,0.11667663,67343.0,67342.0,0.61039244]
[1722143942861,0.11667663,67343.0,67342.0,0.60539244]
[1722143943468,0.001,67343.0,67342.0,0.60539244]
[1722143943740,0.11736326,67343.0,67342.0,0.60539244]
[1722143944462,0.11736326,67343.0,67342.0,0.84298544]
[1722143944777,0.11736326,67343.0,67342.0,0.99324501]
[1722143945402,0.001,67343.0,67342.0,1.13144501]
[1722143950393,0.001,67343.0,67342.0,0.84298544]
[1722143951136,0.11830158,67343.0,67342.0,0.84298544]
[1722143953280,0.11821944,67343.0,67342.0,0.84298544]
[1722143954072,2.40669456,67333.0,67332.0,0.475256]
[1722143954282,2.40669456,67333.0,67332.0,0.86732957]
[1722143954486,2.42784026,67333.0,67332.0,0.86732957]
[1722143954652,2.42784026,67333.0,67332.0,1.11377577]
[1722143955494,2.42884026,67333.0,67332.0,1.11577577]
[1722143957101,2.42884026,67333.0,67332.0,1.25487577]
[1722143957633,2.42984026,67333.0,67332.0,1.50650377]
[1722143959031,2.42984026,67333.0,67332.0,1.26887577]
[1722143960063,2.42984026,67333.0,67332.0,1.50650377]
[1722143961832,2.40869456,67333.0,67332.0,1.50650377]
[1722143962257,2.42984793,67333.0,67332.0,1.50650377]
[1722143964177,2.42984793,67333.0,67332.0,1.18977577]
[1722143964401,2.42984793,67333.0,67332.0,1.25669164]
[1722143964850,2.42984793,67333.0,67332.0,1.42832777]
[1722143965829,2.42984793,67333.0,67332.0,2.12832777]
[1722143966009,2.42984793,67333.0,67332.0,2.19524364]
[1722143966214,2.42984793,67333.0,67332.0,2.19524335]
[1722143966713,2.42984793,67333.0,67332.0,2.12832777]
[1722143967748,2.42984793,67333.0,67332.0,2.59768556]
[1722143967951,2.42984793,67333.0,67332.0,2.87158556]
[1722143968362,2.40869456,67333.0,67332.0,2.87158556]
[1722143968562,2.42984103,67333.0,67332.0,2.87158556]
[1722143968791,2.42984103,67333.0,67332.0,2.64804647]
[1722143969023,2.42984103,67333.0,67332.0,2.55882777]
[1722143969212,2.40869456,67333.0,67332.0,2.55882777]
[1722143969426,2.40869456,67333.0,67332.0,2.79645577]
[1722143969642,2.42984253,67333.0,67332.0,2.79645577]
[1722143975158,2.42984253,67333.0,67332.0,2.67955577]
[1722143975629,2.42984253,67333.0,67332.0,2.44192777]
[1722143976326,2.42984253,67333.0,67332.0,2.67955577]
[1722143976469,2.42984253,67333.0,67332.0,2.44192777]
[1722143976674,2.40869456,67333.0,67332.0,2.44192777]
[1722143976897,2.40869456,67333.0,67332.0,2.67955577]
[1722143977240,2.42987937,67333.0,67332.0,2.67955577]
[1722143977371,2.42987937,67333.0,67332.0,2.44192777]
[1722143978539,2.42987937,67333.0,67332.0,1.50622777]
[1722143978798,2.42987937,67333.0,67332.0,1.51313306]
[1722143979019,2.40869456,67333.0,67332.0,1.44622777]
[1722143979224,2.40869456,67333.0,67332.0,1.51313322]
[1722143979398,2.42988322,67333.0,67332.0,1.51313322]
[1722143980865,2.42988322,67333.0,67332.0,1.43523322]
[1722143981072,2.42988322,67333.0,67332.0,0.0257422]
[1722143981073,2.56868322,67333.0,67332.0,0.0257422]
[1722143981276,2.56868322,67333.0,67332.0,0.3821842]
[1722143981478,2.56868322,67333.0,67332.0,0.7198122]
[1722143981898,2.56668322,67333.0,67332.0,0.7038122]
[1722143982096,2.56668322,67333.0,67332.0,0.7098122]
[1722143982297,2.56768322,67333.0,67332.0,0.7098122]
[1722143982518,2.56768322,67333.0,67332.0,0.7038122]
[1722143982718,2.56768322,67333.0,67332.0,0.7003122]
[1722143982951,2.56868322,67333.0,67332.0,0.7073122]
[1722143983771,2.56868322,67333.0,67332.0,0.9449402]
[1722143983973,2.56335446,67333.0,67332.0,0.9449402]
[1722143984146,2.50522185,67333.0,67332.0,0.9449402]
[1722143984588,2.50522185,67333.0,67332.0,1.09519977]
[1722143984731,2.50522185,67333.0,67332.0,1.11819977]
[1722143986182,2.50522185,67333.0,67332.0,1.35582777]
[1722143986574,2.48409456,67333.0,67332.0,1.35582777]
[1722143986765,2.50521884,67333.0,67332.0,1.35582777]
[1722143986968,2.42981884,67333.0,67332.0,1.35582777]
[1722143987568,2.42781884,67333.0,67332.0,1.34882777]
[1722143987993,2.42881884,67333.0,67332.0,1.36182777]
[1722143988169,2.42981884,67333.0,67332.0,1.36582777]
[1722143988973,2.41981884,67333.0,67332.0,1.36582777]
[1722143991489,2.41981884,67333.0,67332.0,1.48869712]
[1722143991612,2.41981884,67333.0,67332.0,1.44412777]
[1722143991814,2.39869456,67333.0,67332.0,1.48869591]
[1722143992128,2.4196753,67333.0,67332.0,1.74515577]
[1722143992357,2.4196753,67333.0,67332.0,1.8120026]
[1722143993329,2.4196753,67333.0,67332.0,1.81200064]
[1722143993525,2.4196753,67333.0,67332.0,1.74515577]
[1722143993982,2.39869456,67333.0,67332.0,1.74515577]
[1722143994409,2.41967325,67333.0,67332.0,1.74515577]
[1722143995614,2.41967325,67333.0,67332.0,1.81199574]
[1722143996149,2.41967325,67333.0,67332.0,1.74515577]
[1722143996514,2.41967325,67333.0,67332.0,1.81199376]
[1722143996931,2.39869456,67333.0,67332.0,1.81199376]
[1722143997311,2.41967239,67333.0,67332.0,1.81199376]
[1722143998210,2.41967239,67333.0,67332.0,1.81199049]
[1722143998669,2.41967239,67333.0,67332.0,1.74515577]
[1722143999045,2.41967239,67333.0,67332.0,1.83427488]
[1722143999256,2.41967239,67333.0,67332.0,1.74515577]
[1722144001247,2.41967239,67333.0,67332.0,1.81198951]
[1722144001449,2.41155813,67333.0,67332.0,1.49606151]
[1722144001618,2.41155813,67333.0,67332.0,1.36582777]
[1722144001853,2.41954741,67333.0,67332.0,1.36582777]
[1722144002026,2.41954741,67333.0,67332.0,1.41038249]
[1722144002231,2.41954741,67333.0,67332.0,1.36582777]
[1722144002632,2.50254741,67333.0,67332.0,0.9549402]
[1722144005266,2.50254741,67333.0,67332.0,1.0328402]
[1722144007279,2.56634741,67333.0,67332.0,0.7173122]
[1722144008427,2.56534741,67333.0,67332.0,0.7133122]
[1722144008846,2.56434741,67333.0,67332.0,0.7033122]
[1722144010274,2.56434741,67333.0,67332.0,0.7053122]
[1722144010469,2.56434741,67333.0,67332.0,0.7023122]
[1722144010913,2.56434741,67333.0,67332.0,0.7073122]
[1722144013282,2.56434741,67333.0,67332.0,0.7053122]
[1722144013726,2.56434741,67333.0,67332.0,0.7023122]
[1722144014120,2.56534741,67333.0,67332.0,0.7083122]
[1722144014422,2.56534741,67333.0,67332.0,0.7063122]
[1722144014623,2.56534741,67333.0,67332.0,0.7093122]
[1722144014830,2.41854741,67333.0,67332.0,1.17232956]
[1722144015031,2.41854741,67333.0,67332.0,1.19532956]
[1722144015239,2.39769456,67333.0,67332.0,1.19532956]
[1722144015439,2.41498703,67333.0,67332.0,1.19532956]
[1722144015806,2.41498703,67333.0,67332.0,1.43295756]
[1722144016559,2.41498703,67333.0,67332.0,1.42995756]
[1722144016714,2.41398703,67333.0,67332.0,1.42695756]
[1722144017122,2.41398703,67333.0,67332.0,1.42395756]
[1722144017324,2.41398703,67333.0,67332.0,1.43595756]
[1722144017546,2.39769456,67333.0,67332.0,1.44495756]
[1722144017714,2.41497935,67333.0,67332.0,1.44495756]
[1722144019719,2.41497935,67333.0,67332.0,1.36982777]
[1722144019920,2.36799156,67333.0,67332.0,1.95487779]
[1722144020121,2.38527779,67333.0,67332.0,1.95487594]
[1722144020552,2.38527779,67333.0,67332.0,1.91035577]
[1722144020804,2.38527779,67333.0,67332.0,1.95487386]
[1722144021003,2.38527779,67333.0,67332.0,1.71724586]
[1722144021366,2.38527779,67333.0,67332.0,1.67272777]
[1722144021541,2.38527779,67333.0,67332.0,1.91035577]
[1722144021749,2.36799156,67333.0,67332.0,1.91035577]
[1722144022103,2.3852792,67333.0,67332.0,1.91035577]
[1722144022304,2.3852792,67333.0,67332.0,1.95487227]
[1722144022505,2.3852792,67333.0,67332.0,1.91035577]
[1722144022707,2.3852792,67333.0,67332.0,1.95487133]
[1722144022932,2.36799156,67333.0,67332.0,1.71724333]
[1722144023133,2.36799156,67333.0,67332.0,1.95487125]
[1722144023309,2.36799156,67333.0,67332.0,1.47764325]
[1722144023310,2.38528035,67333.0,67332.0,1.47764325]
[1722144023533,2.38528035,67333.0,67332.0,1.51102777]
[1722144023692,2.36799156,67333.0,67332.0,1.51102777]
[1722144024140,2.38531916,67333.0,67332.0,1.51102777]
[1722144025130,2.38531916,67333.0,67332.0,1.55554325]
[1722144025486,2.36799156,67333.0,67332.0,1.51102777]
[1722144025920,2.38533874,67333.0,67332.0,1.51102777]
[1722144029000,2.38533874,67333.0,67332.0,1.55553913]
[1722144029615,1.43646374,67333.0,67332.0,2.22588377]
[1722144029814,1.43646374,67333.0,67332.0,2.361458]
[1722144030032,1.27060156,67333.0,67332.0,2.29469396]
[1722144030159,1.28794804,67333.0,67332.0,2.40597238]
[1722144030364,1.28794804,67333.0,67332.0,2.29469396]
[1722144030565,1.28694804,67333.0,67332.0,2.27369396]
[1722144030829,1.25724504,67333.0,67332.0,2.27369396]
[1722144031031,1.19783904,67333.0,67332.0,2.28769396]
[1722144031342,1.19783904,67333.0,67332.0,2.27369396]
[1722144031343,1.13843304,67333.0,67332.0,2.27369396]
[1722144031619,0.83964853,67333.0,67332.0,2.28769396]
[1722144031759,0.73093823,67333.0,67332.0,2.50360022]
[1722144031962,0.58948165,67333.0,67332.0,2.44879003]
[1722144032169,0.06107238,67333.0,67332.0,2.89640857]
[1722144032380,0.078,67358.0,67357.0,1.06893]
[1722144032605,0.078,67358.0,67357.0,1.42008957]
[1722144032791,0.0603,67365.0,67364.0,0.831302]
[1722144033012,0.0603,67365.0,67364.0,0.98156157]
[1722144033430,0.1383,67365.0,67364.0,0.98156157]
[1722144033629,0.078,67365.0,67364.0,1.00456157]
[1722144034037,0.078,67365.0,67364.0,1.10456157]
[1722144034240,0.078,67365.0,67364.0,1.34207657]
[1722144034393,0.49464302,67396.0,67366.0,0.59377]
[1722144034394,0.078,67371.0,67366.0,0.59377]
[1722144034598,0.078,67371.0,67366.0,1.10453757]
[1722144034859,0.078,67371.0,67366.0,1.34204557]
[1722144035278,0.13914,67367.0,67366.0,0.218754]
[1722144035407,0.1393,67365.0,67364.0,0.017]
[1722144036056,0.1393,67365.0,67364.0,0.007]
[1722144036057,0.1403,67365.0,67364.0,0.007]
[1722144036561,0.0638,67353.0,67342.0,0.28864177]
[1722144036672,0.0638,67353.0,67340.0,0.37334166]
[1722144036673,0.08,67352.0,67349.0,0.237568]
[1722144036873,0.002,67354.0,67343.0,0.15025957]
[1722144036874,0.08,67350.0,67343.0,0.15025957]
[1722144037117,0.08,67350.0,67349.0,0.118784]
[1722144037381,0.08,67350.0,67348.0,0.118785]
[1722144037582,0.0638,67349.0,67348.0,0.118785]
[1722144037819,0.1438,67349.0,67348.0,0.118785]
[1722144038478,0.08,67347.0,67346.0,0.118788]
[1722144038884,0.08957655,67347.0,67346.0,0.118788]
[1722144039504,0.08957655,67347.0,67346.0,0.356367]
[1722144039719,0.08957655,67347.0,67346.0,0.593946]
[1722144039921,0.08,67347.0,67346.0,0.593946]
[1722144040277,0.08,67347.0,67346.0,0.597946]
[1722144040492,0.08,67347.0,67346.0,0.594946]
[1722144040888,0.08,67347.0,67346.0,0.602946]
[1722144041879,0.08,67347.0,67346.0,0.99078457]
[1722144042481,0.08,67347.0,67346.0,0.98978457]
[1722144042882,0.08,67347.0,67346.0,0.99378457]
[1722144043290,0.08,67347.0,67346.0,1.33136357]
[1722144043528,0.00284,67367.0,67349.0,0.831488]
[1722144043529,0.08,67350.0,67349.0,0.831488]
[1722144043731,0.08,67350.0,67349.0,1.08174757]
[1722144043870,0.08,67350.0,67349.0,1.10474757]
[1722144044075,0.0638,67355.0,67349.0,1.10474757]
[1722144044076,0.08,67354.0,67353.0,0.118777]
[1722144044277,0.08,67354.0,67353.0,0.74414457]
[1722144044481,0.08,67354.0,67353.0,0.98169857]
[1722144045509,0.08,67354.0,67353.0,0.99069857]
[1722144046147,0.08,67354.0,67353.0,0.99569857]
[1722144049938,0.08,67354.0,67353.0,0.370331]
[1722144051772,0.08,67354.0,67353.0,0.607885]
[1722144056502,0.08,67354.0,67353.0,0.370331]
[1722144056892,0.07996,67354.0,67353.0,0.370331]
[1722144059502,0.07996,67354.0,67353.0,0.607885]
[1722144059704,0.07996,67354.0,67353.0,0.75814457]
[1722144062132,0.198735,67354.0,67353.0,0.014]
[1722144062332,0.6139461,67354.0,67353.0,0.014]
[1722144062551,1.20803255,67354.0,67353.0,0.014]
[1722144062828,0.96680272,67354.0,67353.0,0.014]
[1722144063027,1.28805252,67354.0,67353.0,0.014]
[1722144063246,0.83528616,67354.0,67353.0,0.014]
[1722144063394,0.83528616,67354.0,67341.0,0.118797]
[1722144063395,0.118784,67349.0,67341.0,0.118797]
[1722144063594,0.0644,67352.0,67341.0,0.118797]
[1722144063595,0.19000082,67348.0,67341.0,0.118797]
[1722144063772,0.11274662,67347.0,67341.0,0.118797]
[1722144063974,0.11430082,67346.0,67341.0,0.118797]
[1722144064199,0.11274662,67345.0,67341.0,0.118797]
[1722144064399,0.002,67342.0,67341.0,0.118797]
[1722144064606,0.11274662,67342.0,67341.0,0.118797]
[1722144064804,0.12228358,67342.0,67341.0,0.118797]
[1722144065741,0.12228358,67342.0,67339.0,0.237601]
[1722144065742,0.12228358,67342.0,67340.0,0.118799]
[1722144065919,0.11430082,67341.0,67340.0,0.1188]
[1722144066126,0.11415995,67341.0,67340.0,0.1188]
[1722144066372,0.11260575,67341.0,67340.0,0.3564]
[1722144066717,0.11255287,67342.0,67341.0,0.118798]
[1722144066849,0.11255287,67342.0,67341.0,0.127798]
[1722144066850,0.11255285,67342.0,67341.0,0.127798]
[1722144067050,0.12208888,67342.0,67341.0,0.118798]
[1722144067899,0.12208888,67342.0,67341.0,0.356394]
[1722144068051,0.12208888,67342.0,67340.0,0.1348]
[1722144068256,0.11255285,67341.0,67340.0,0.016]
[1722144068514,0.12408898,67341.0,67340.0,0.1188]
[1722144069013,0.11455285,67341.0,67340.0,0.1188]
[1722144069222,0.002,67341.0,67340.0,0.3564]
[1722144069557,0.11502842,67341.0,67340.0,0.1248]
[1722144069786,0.11602842,67341.0,67340.0,0.1248]
[1722144070617,0.003,67341.0,67340.0,0.1348]
[1722144070772,0.001,67341.0,67340.0,0.1348]
[1722144070974,0.001,67341.0,67340.0,0.3724]
[1722144071178,0.001,67341.0,67340.0,0.99785957]
[1722144072160,0.001,67341.0,67340.0,1.35845957]
[1722144072362,0.001,67341.0,67340.0,1.50235957]
[1722144073396,0.00084,67354.0,67353.0,0.356331]
[1722144073594,0.00084,67354.0,67353.0,0.593885]
[1722144075014,0.00084,67354.0,67353.0,0.98769857]
[1722144075541,0.00084,67354.0,67353.0,0.98869857]
[1722144076292,0.00084,67354.0,67353.0,0.98769857]
[1722144076512,0.00084,67354.0,67353.0,0.98169857]
[1722144076724,0.00084,67354.0,67353.0,0.99269857]
[1722144081102,0.00084,67354.0,67353.0,0.75514457]
[1722144081746,0.00084,67354.0,67353.0,0.99269857]
[1722144082553,0.00084,67354.0,67353.0,0.75514457]
[1722144083626,0.00084,67354.0,67353.0,0.7662525]
[1722144084980,0.07924,67354.0,67353.0,0.7662525]
[1722144085969,0.00084,67354.0,67353.0,0.7662525]
[1722144092029,0.00084,67354.0,67353.0,0.7632525]
[1722144092646,0.00084,67354.0,67353.0,0.7552525]
[1722144092990,0.00084,67354.0,67353.0,0.9988065]
[1722144093783,0.00084,67354.0,67353.0,0.7612525]
[1722144094325,0.00084,67354.0,67353.0,0.7562525]
[1722144094722,0.00084,67354.0,67353.0,0.7602525]
[1722144094923,0.00084,67354.0,67353.0,0.7592525]
[1722144095558,0.00084,67354.0,67353.0,0.9968065]
[1722144096355,0.00084,67354.0,67353.0,0.9977305]
[1722144096840,0.00084,67354.0,67353.0,2.1983845]
[1722144097056,0.00084,67367.0,67366.0,0.59377]
[1722144098421,0.00084,67367.0,67366.0,0.60277]
[1722144098798,0.00084,67367.0,67366.0,0.60777]
[1722144101252,0.00084,67367.0,67366.0,0.845278]
[1722144102291,0.00084,67367.0,67366.0,0.60777]
[1722144103441,0.00284,67367.0,67366.0,0.60777]
[1722144103640,0.07744,67367.0,67366.0,0.60777]
[1722144103846,0.08942579,67367.0,67366.0,0.60777]
[1722144104522,0.08942579,67367.0,67366.0,0.845278]
[1722144104730,0.08942579,67367.0,67366.0,0.60777]
[1722144104934,0.07744,67367.0,67366.0,0.60777]
[1722144106258,0.07944,67367.0,67366.0,0.60777]
[1722144106790,0.07744,67367.0,67366.0,0.60277]
[1722144106991,0.07744,67367.0,67366.0,0.60377]
[1722144107202,0.07744,67367.0,67366.0,0.59477]
[1722144107413,0.07744,67367.0,67366.0,0.59377]
[1722144107613,0.07944,67367.0,67357.0,0.0618]
[1722144107852,0.07944,67367.0,67363.0,0.118759]
[1722144107853,0.1439,67364.0,67363.0,0.118759]
[1722144108058,0.00084,67367.0,67353.0,0.3236737]
[1722144108059,0.002,67355.0,67353.0,0.4194497]
[1722144108274,0.1439,67354.0,67353.0,0.3006737]
[1722144108474,0.15308742,67354.0,67353.0,0.3006737]
[1722144109288,0.15308742,67354.0,67353.0,0.28956577]
[1722144109701,0.15464162,67354.0,67353.0,0.28956577]
[1722144110350,0.27341662,67354.0,67353.0,0.28956577]
[1722144110542,0.15308742,67354.0,67353.0,0.28956577]
[1722144110761,0.15508742,67354.0,67353.0,0.28956577]
[1722144111060,0.27386242,67354.0,67353.0,0.28956577]
[1722144111262,0.27186242,67354.0,67353.0,0.000924]
[1722144111418,1.09182199,67354.0,67353.0,0.014924]
[1722144111663,1.09182199,67354.0,67353.0,0.000924]
[1722144111664,1.49854036,67354.0,67353.0,0.000924]
[1722144112034,1.49862669,67354.0,67353.0,0.000924]
[1722144113355,1.48342543,67354.0,67353.0,0.000924]
[1722144113580,0.31733522,67354.0,67353.0,0.000924]
[1722144113779,0.14035816,67354.0,67353.0,0.119701]
[1722144113979,0.08978742,67354.0,67353.0,0.001924]
[1722144114160,0.09078742,67354.0,67353.0,0.001924]
[1722144114357,0.20656242,67354.0,67353.0,0.000924]
[1722144114574,0.08878742,67354.0,67353.0,0.001924]
[1722144114882,0.09078742,67354.0,67353.0,0.001924]
[1722144115220,0.09178742,67354.0,67353.0,0.001924]
[1722144115423,0.08878742,67354.0,67353.0,0.000924]
[1722144115658,0.08778742,67354.0,67353.0,0.000924]
[1722144116576,0.08778742,67354.0,67353.0,0.001924]
[1722144116577,0.09078742,67354.0,67353.0,0.001924]
[1722144117023,0.09078742,67354.0,67353.0,0.002924]
[1722144117198,0.08778742,67354.0,67353.0,0.001924]
[1722144117397,0.08778742,67354.0,67353.0,0.000924]
[1722144117398,0.08978742,67354.0,67353.0,0.000924]
[1722144117601,0.08978742,67354.0,67353.0,0.002924]
[1722144118039,0.08778742,67354.0,67353.0,0.000924]
[1722144118339,0.09178742,67354.0,67353.0,0.001924]
[1722144119015,0.09178742,67354.0,67353.0,0.003924]
[1722144119601,0.09178742,67354.0,67353.0,0.122701]
[1722144119990,0.0826,67354.0,67353.0,0.122701]
[1722144120226,0.0826,67354.0,67353.0,0.121701]
[1722144120227,0.0796,67354.0,67353.0,0.121701]
[1722144120439,0.08776133,67354.0,67353.0,0.000924]
[1722144120646,0.08976133,67354.0,67353.0,0.000924]
[1722144120854,0.09076133,67354.0,67353.0,0.000924]
[1722144121028,0.08776133,67354.0,67353.0,0.357255]
[1722144121207,0.002,67360.0,67358.0,0.118768]
[1722144121208,0.0751,67359.0,67358.0,0.118768]
[1722144121411,0.0842637,67359.0,67358.0,0.118768]
[1722144121614,0.0751,67364.0,67358.0,0.237536]
[1722144121813,0.002,67365.0,67364.0,0.356272]
[1722144122013,0.002,67365.0,67364.0,0.593787]
[1722144122220,0.002,67365.0,67364.0,0.356272]
[1722144122834,0.002,67365.0,67364.0,0.593787]
[1722144123040,0.002,67366.0,67365.0,0.118756]
[1722144123839,0.002,67366.0,67365.0,0.353268]
[1722144124052,0.002,67366.0,67365.0,0.115756]
[1722144124298,0.00084,67367.0,67364.0,0.001]
[1722144124299,0.002,67365.0,67364.0,0.001]
[1722144124493,0.002,67365.0,67353.0,0.000924]
[1722144124494,0.003,67359.0,67355.0,0.12919634]
[1722144124792,0.237508,67366.0,67356.0,0.11877]
[1722144124793,0.002,67357.0,67356.0,0.11877]
[1722144124994,0.002,67357.0,67356.0,0.356313]
[1722144125358,0.002,67357.0,67356.0,0.11877]
[1722144125577,0.002,67357.0,67356.0,0.356313]
[1722144125810,0.001,67359.0,67356.0,0.237543]
[1722144126010,0.001,67359.0,67358.0,0.356304]
[1722144126197,0.002,67360.0,67356.0,0.237543]
[1722144126418,0.002,67357.0,67353.0,0.24912462]
[1722144126777,0.237508,67366.0,67353.0,0.357255]
[1722144126778,0.002,67354.0,67353.0,0.357255]
[1722144126969,0.002,67354.0,67353.0,0.000924]
[1722144127519,0.01119082,67354.0,67353.0,0.000924]
[1722144129238,0.01119082,67354.0,67353.0,0.001924]
[1722144129650,0.01119082,67354.0,67353.0,0.006924]
[1722144130023,0.36751582,67354.0,67353.0,0.006924]
[1722144130207,0.36751582,67354.0,67353.0,0.005924]
[1722144130409,0.01119082,67354.0,67353.0,0.005924]
[1722144131877,0.36751582,67354.0,67353.0,0.000924]
[1722144132185,0.12996582,67354.0,67353.0,0.000924]
[1722144132742,0.13096582,67354.0,67353.0,0.000924]
[1722144132969,0.01219082,67354.0,67353.0,0.000924]
[1722144136024,0.002,67347.0,67346.0,0.42749141]
[1722144136227,0.11881,67334.0,67333.0,0.000924]
[1722144136381,0.002,67334.0,67333.0,0.000924]
[1722144136581,0.0801,67334.0,67333.0,0.000924]
[1722144136832,0.35706378,67334.0,67333.0,0.000924]
[1722144136983,0.74419578,67334.0,67333.0,0.000924]
[1722144137179,0.84164956,67334.0,67333.0,0.000924]
[1722144137388,1.03624956,67334.0,67333.0,0.000924]
[1722144137591,0.79862856,67334.0,67333.0,0.000924]
[1722144138229,1.03624956,67334.0,67333.0,0.000924]
[1722144139075,1.03724956,67334.0,67333.0,0.008924]
[1722144139589,1.03587574,67334.0,67333.0,0.014924]
[1722144139766,0.93879578,67334.0,67333.0,0.000924]
[1722144139968,1.03585655,67334.0,67333.0,0.000924]
[1722144140372,1.03585655,67334.0,67333.0,0.004924]
[1722144141901,1.18611612,67334.0,67333.0,0.004924]
[1722144142327,1.42373712,67334.0,67333.0,0.004924]
[1722144142480,1.32667635,67334.0,67333.0,0.004924]
[1722144142830,1.47714795,67334.0,67333.0,0.004924]
[1722144142982,1.42348482,67334.0,67333.0,0.004924]
[1722144143185,1.47714772,67334.0,67333.0,0.004924]
[1722144143522,1.42348482,67334.0,67333.0,0.004924]
[1722144145882,1.42303213,67334.0,67333.0,0.004924]
[1722144146632,1.18541113,67334.0,67333.0,0.004924]
[1722144147036,1.42303213,67334.0,67333.0,0.004924]
[1722144147650,1.18541113,67334.0,67333.0,0.004924]
[1722144148073,1.42303213,67334.0,67333.0,0.004924]
[1722144148279,1.18541113,67334.0,67333.0,0.004924]
[1722144148480,1.18544671,67334.0,67333.0,0.004924]
[1722144149336,1.08905535,67334.0,67333.0,0.004924]
[1722144149930,1.18555699,67334.0,67333.0,0.004924]
[1722144150584,1.18550693,67334.0,67333.0,0.004924]
[1722144150766,0.01134378,67334.0,67333.0,0.004924]
[1722144151299,0.002,67334.0,67333.0,0.004924]
[1722144151538,0.01362078,67334.0,67333.0,0.004924]
[1722144152178,0.02686316,67334.0,67333.0,0.004924]
[1722144152434,0.01362078,67334.0,67333.0,0.004924]
[1722144152845,0.01362078,67334.0,67333.0,0.070124]
[1722144153747,0.002,67334.0,67333.0,0.070124]
[1722144153971,0.01362029,67334.0,67333.0,0.070124]
[1722144154195,0.002,67334.0,67333.0,0.004924]
[1722144154396,0.01362029,67334.0,67333.0,0.004924]
[1722144154639,0.002,67334.0,67333.0,0.004924]
[1722144154847,0.01362029,67334.0,67333.0,0.004924]
[1722144155042,0.002,67334.0,67333.0,0.004924]
[1722144155217,0.01362053,67334.0,67333.0,0.004924]